bitfinex/quotes_BTCUSD_20241004
["timestamp","ask_amount","ask_price","bid_price","bid_amount"]
[1728060195041,0.161115,62385.0,62384.0,0.002]
[1728060195271,0.000821,62385.0,62384.0,0.002]
[1728060195737,0.000821,62385.0,62384.0,0.2085887]
[1728060195961,0.000821,62385.0,62383.0,0.160298]
[1728060196665,0.000821,62385.0,62384.0,0.001]
[1728060197160,0.000821,62385.0,62383.0,0.160298]
[1728060197404,0.000821,62385.0,62383.0,0.163298]
[1728060197644,0.000821,62385.0,62383.0,0.003]
[1728060197889,0.000821,62385.0,62383.0,0.164298]
[1728060198134,0.000821,62385.0,62383.0,0.003]
[1728060198395,0.000821,62385.0,62384.0,0.160297]
[1728060199108,0.000821,62385.0,62384.0,0.003]
[1728060199346,0.000821,62385.0,62384.0,0.163297]
[1728060200568,0.000821,62385.0,62384.0,0.337997]
[1728060201347,0.000821,62385.0,62384.0,0.339997]
[1728060201572,0.000821,62390.0,62389.0,0.160284]
[1728060201802,0.000821,62390.0,62389.0,0.240984]
[1728060202776,0.000821,62390.0,62389.0,0.254984]
[1728060203242,0.000821,62390.0,62389.0,0.240984]
[1728060203753,0.000821,62390.0,62389.0,0.266984]
[1728060203982,0.000821,62390.0,62389.0,0.1067]
[1728060203983,0.001821,62390.0,62389.0,0.1067]
[1728060204203,0.001821,62390.0,62389.0,0.0927]
[1728060204455,0.000821,62390.0,62389.0,0.0927]
[1728060204681,0.001821,62390.0,62389.0,0.1067]
[1728060204901,0.001821,62390.0,62389.0,0.0807]
[1728060205123,0.000821,62390.0,62389.0,0.0807]
[1728060205352,0.000821,62390.0,62389.0,0.014]
[1728060205798,0.000821,62390.0,62389.0,0.003]
[1728060206041,0.000821,62390.0,62389.0,0.165284]
[1728060206505,0.000821,62390.0,62389.0,0.005]
[1728060206951,0.000821,62390.0,62389.0,0.162284]
[1728060207183,0.000821,62390.0,62389.0,0.003]
[1728060207718,0.000821,62390.0,62389.0,0.163284]
[1728060207905,0.000821,62390.0,62389.0,0.003]
[1728060208132,0.000821,62390.0,62389.0,0.163284]
[1728060208617,0.000821,62390.0,62389.0,0.160284]
[1728060208855,0.005821,62390.0,62389.0,0.160284]
[1728060209100,0.005821,62390.0,62386.0,0.320581]
[1728060209326,0.003821,62390.0,62388.0,0.160286]
[1728060209555,0.003821,62390.0,62386.0,0.320582]
[1728060209804,0.003821,62390.0,62389.0,0.003]
[1728060210071,0.003821,62390.0,62389.0,0.163284]
[1728060210321,0.003821,62390.0,62389.0,0.2407298]
[1728060210561,0.003821,62390.0,62389.0,0.337484]
[1728060210816,0.003821,62390.0,62389.0,0.336484]
[1728060210817,0.000821,62390.0,62389.0,0.336484]
[1728060211288,0.002821,62390.0,62389.0,0.336484]
[1728060211532,0.000821,62390.0,62389.0,0.336484]
[1728060211987,0.001821,62390.0,62389.0,0.358588]
[1728060212444,0.001821,62390.0,62389.0,0.355588]
[1728060212944,0.001821,62390.0,62389.0,0.369588]
[1728060216382,0.001821,62390.0,62389.0,0.264784]
[1728060220393,0.001821,62390.0,62389.0,0.1045]
[1728060220634,0.162103,62390.0,62389.0,0.028]
[1728060221113,0.001821,62390.0,62389.0,0.028]
[1728060221858,0.161103,62390.0,62389.0,0.014]
[1728060222088,0.161103,62390.0,62388.0,0.001642]
[1728060222089,0.183284,62389.0,62388.0,0.001642]
[1728060222554,0.283284,62389.0,62388.0,0.001642]
[1728060223270,0.33951262,62389.0,62388.0,0.001642]
[1728060223511,0.283284,62389.0,62388.0,0.001642]
[1728060224229,0.289284,62389.0,62388.0,0.001642]
[1728060225213,0.31442279,62389.0,62388.0,0.001642]
[1728060225462,0.45362279,62389.0,62388.0,0.001642]
[1728060226185,0.52558171,62389.0,62388.0,0.001642]
[1728060226425,0.68575817,62389.0,62388.0,0.002642]
[1728060226655,0.46062279,62389.0,62388.0,0.003642]
[1728060226897,0.46062279,62389.0,62388.0,0.002642]
[1728060226898,0.45950704,62389.0,62388.0,0.002642]
[1728060227117,0.44950704,62389.0,62388.0,0.001642]
[1728060227338,0.45950704,62389.0,62388.0,0.002642]
[1728060227557,0.44950704,62389.0,62388.0,0.001642]
[1728060228048,0.31830704,62389.0,62388.0,0.002642]
[1728060228308,0.27016825,62389.0,62388.0,0.002642]
[1728060228761,0.27016825,62389.0,62388.0,0.003642]
[1728060228762,0.28416825,62389.0,62388.0,0.003642]
[1728060229435,0.29316825,62389.0,62388.0,0.002642]
[1728060229657,0.29916825,62389.0,62388.0,0.003642]
[1728060229883,0.42553427,62389.0,62388.0,0.002642]
[1728060230131,0.54883427,62389.0,62388.0,0.001642]
[1728060230517,0.55383427,62389.0,62388.0,0.001642]
[1728060230518,0.56583427,62389.0,62388.0,0.002642]
[1728060230753,0.68576581,62389.0,62388.0,0.001642]
[1728060230966,0.68576581,62389.0,62388.0,0.002642]
[1728060231193,0.69376581,62389.0,62388.0,0.002642]
[1728060231398,0.69376581,62389.0,62388.0,0.001642]
[1728060231399,0.56183427,62389.0,62388.0,0.001642]
[1728060231597,0.67174193,62389.0,62388.0,0.002642]
[1728060231805,0.66674193,62389.0,62388.0,0.002642]
[1728060232018,0.57483427,62389.0,62388.0,0.002642]
[1728060232244,0.59160205,62389.0,62388.0,0.002642]
[1728060232459,0.68748995,62389.0,62388.0,0.002642]
[1728060232624,0.68348995,62389.0,62388.0,0.002642]
[1728060233413,0.72263159,62389.0,62388.0,0.002642]
[1728060233816,0.59626557,62389.0,62388.0,0.002642]
[1728060234027,0.50037767,62389.0,62388.0,0.002642]
[1728060234457,0.5722654,62389.0,62388.0,0.002642]
[1728060234913,0.50119867,62389.0,62388.0,0.002642]
[1728060235120,0.50619867,62389.0,62388.0,0.002642]
[1728060235327,0.76527328,62389.0,62388.0,0.002642]
[1728060235799,0.78531692,62389.0,62388.0,0.002642]
[1728060236025,0.61713021,62389.0,62388.0,0.002642]
[1728060236686,0.59301399,62389.0,62388.0,0.002642]
[1728060237562,0.49719867,62389.0,62388.0,0.002642]
[1728060237978,0.59301399,62389.0,62388.0,0.002642]
[1728060238199,0.46920166,62378.0,62377.0,0.2405041]
[1728060238885,0.46920166,62378.0,62372.0,0.001642]
[1728060238886,0.160325,62373.0,62372.0,0.001642]
[1728060239121,0.46721466,62373.0,62372.0,0.001642]
[1728060239354,0.283325,62373.0,62372.0,0.001642]
[1728060240427,0.287325,62373.0,62372.0,0.001642]
[1728060241173,0.283325,62373.0,62372.0,0.001642]
[1728060241406,0.293325,62373.0,62372.0,0.001642]
[1728060242073,0.290325,62373.0,62372.0,0.001642]
[1728060242543,0.295325,62373.0,62372.0,0.001642]
[1728060242780,0.31346823,62373.0,62372.0,0.079642]
[1728060243031,0.31546823,62373.0,62372.0,0.079642]
[1728060243269,0.30846823,62373.0,62372.0,0.079642]
[1728060243719,0.31446823,62373.0,62372.0,0.170042]
[1728060243947,0.30846823,62373.0,62372.0,0.170042]
[1728060244202,0.31946823,62373.0,62372.0,0.170042]
[1728060244670,0.31246823,62373.0,62372.0,0.170042]
[1728060245637,0.30846823,62373.0,62372.0,0.170042]
[1728060245928,0.30946823,62373.0,62372.0,0.170042]
[1728060246181,0.31646823,62373.0,62372.0,0.079642]
[1728060246439,0.30946823,62373.0,62372.0,0.079642]
[1728060246920,0.30946823,62373.0,62372.0,0.001642]
[1728060247166,0.30846823,62373.0,62372.0,0.001642]
[1728060247414,0.30646823,62373.0,62372.0,0.001642]
[1728060248397,0.281325,62373.0,62372.0,0.001642]
[1728060249053,0.286325,62373.0,62372.0,0.001642]
[1728060249506,0.42973847,62373.0,62372.0,0.001642]
[1728060249741,0.294325,62373.0,62372.0,0.001642]
[1728060250452,0.283325,62373.0,62372.0,0.001642]
[1728060250673,0.291325,62373.0,62372.0,0.001642]
[1728060250898,0.297325,62373.0,62372.0,0.001642]
[1728060251153,0.289325,62373.0,62372.0,0.001642]
[1728060251625,0.31447133,62373.0,62372.0,0.001642]
[1728060251849,0.30847133,62373.0,62372.0,0.001642]
[1728060252076,0.31747133,62373.0,62372.0,0.001642]
[1728060252578,0.36804661,62373.0,62372.0,0.001642]
[1728060252803,0.45904661,62373.0,62372.0,0.001642]
[1728060253036,0.47304661,62373.0,62372.0,0.001642]
[1728060253514,0.46404661,62373.0,62372.0,0.001642]
[1728060254012,0.45304661,62373.0,62372.0,0.001642]
[1728060254253,0.41347133,62373.0,62372.0,0.001642]
[1728060254703,0.42747133,62373.0,62372.0,0.001642]
[1728060257269,0.33647133,62373.0,62372.0,0.001642]
[1728060258458,0.311325,62373.0,62372.0,0.001642]
[1728060259147,0.35844538,62373.0,62372.0,0.001642]
[1728060259402,0.311325,62373.0,62372.0,0.001642]
[1728060261543,0.297325,62373.0,62372.0,0.001642]
[1728060262045,0.283325,62373.0,62372.0,0.001642]
[1728060262500,0.297325,62373.0,62372.0,0.001642]
[1728060262743,0.29647176,62373.0,62372.0,0.001642]
[1728060262957,0.33362108,62373.0,62372.0,0.001642]
[1728060263180,0.33562108,62373.0,62372.0,0.001642]
[1728060263398,0.32062108,62373.0,62372.0,0.001642]
[1728060263659,0.23062108,62373.0,62372.0,0.083542]
[1728060263902,0.21862108,62373.0,62372.0,0.083542]
[1728060264169,0.21962108,62373.0,62372.0,0.083542]
[1728060264639,0.22862108,62373.0,62372.0,0.083542]
[1728060264856,0.25162108,62373.0,62372.0,0.083542]
[1728060265085,0.32862108,62373.0,62372.0,0.174942]
[1728060265554,0.07029608,62373.0,62372.0,0.174942]
[1728060265796,0.07029608,62373.0,62372.0,0.33527]
[1728060266041,0.05029608,62373.0,62372.0,0.174942]
[1728060266806,0.15329608,62373.0,62372.0,0.174942]
[1728060267049,0.17629608,62373.0,62372.0,0.174942]
[1728060267289,0.15829608,62373.0,62372.0,0.174942]
[1728060267521,0.31962108,62373.0,62372.0,0.175942]
[1728060268250,0.29447432,62373.0,62372.0,0.175942]
[1728060268477,0.30947432,62373.0,62372.0,0.175942]
[1728060268933,0.31047432,62373.0,62372.0,0.175942]
[1728060269162,0.30947432,62373.0,62372.0,0.174942]
[1728060269665,0.31047432,62373.0,62372.0,0.175942]
[1728060269908,0.31147432,62373.0,62372.0,0.175942]
[1728060270148,0.30947432,62373.0,62372.0,0.175942]
[1728060270380,0.30847432,62373.0,62372.0,0.174942]
[1728060270599,0.30847432,62373.0,62372.0,0.175942]
[1728060272196,0.30847432,62373.0,62372.0,0.174942]
[1728060272418,0.04814932,62373.0,62372.0,0.175942]
[1728060272875,0.14814932,62373.0,62372.0,0.174942]
[1728060273334,0.14814932,62373.0,62372.0,0.33627]
[1728060273596,0.02514932,62373.0,62372.0,0.33627]
[1728060273832,0.02514932,62373.0,62372.0,0.33527]
[1728060274108,0.02514932,62373.0,62372.0,0.174942]
[1728060274351,0.02514932,62373.0,62372.0,0.083542]
[1728060274352,0.18547432,62373.0,62372.0,0.083542]
[1728060274575,0.18547432,62373.0,62372.0,0.084542]
[1728060274833,0.20847432,62373.0,62372.0,0.084542]
[1728060275330,0.23361672,62373.0,62372.0,0.084542]
[1728060275760,0.23361672,62373.0,62372.0,0.083542]
[1728060276203,0.23361672,62373.0,62372.0,0.084542]
[1728060276701,0.23361672,62373.0,62372.0,0.083542]
[1728060277384,0.23361672,62373.0,62372.0,0.001642]
[1728060277385,0.46317019,62373.0,62372.0,0.001642]
[1728060277629,0.33361672,62373.0,62372.0,0.001642]
[1728060277870,0.42970747,62373.0,62372.0,0.001642]
[1728060278111,0.38155206,62373.0,62372.0,0.001642]
[1728060278357,0.40456507,62373.0,62372.0,0.001642]
[1728060278608,0.41756507,62373.0,62372.0,0.001642]
[1728060279088,0.31347432,62373.0,62372.0,0.001642]
[1728060279314,0.40956507,62373.0,62372.0,0.001642]
[1728060279532,0.32147432,62373.0,62372.0,0.001642]
[1728060279951,0.40454948,62373.0,62372.0,0.001642]
[1728060280223,0.40654948,62373.0,62372.0,0.001642]
[1728060280951,0.40454948,62373.0,62372.0,0.001642]
[1728060281461,0.30947432,62373.0,62372.0,0.001642]
[1728060282186,0.28547432,62373.0,62372.0,0.001642]
[1728060282424,0.31543851,62373.0,62372.0,0.001642]
[1728060282672,0.48756671,62373.0,62372.0,0.001642]
[1728060283128,0.34043851,62373.0,62372.0,0.001642]
[1728060283593,0.35143851,62373.0,62372.0,0.001642]
[1728060284048,0.33443851,62373.0,62372.0,0.001642]
[1728060284517,0.34743851,62373.0,62372.0,0.001642]
[1728060285176,0.35143851,62373.0,62372.0,0.001642]
[1728060285442,0.33843851,62373.0,62372.0,0.001642]
[1728060285661,0.34143851,62373.0,62372.0,0.001642]
[1728060286090,0.34643851,62373.0,62372.0,0.001642]
[1728060286552,0.15811351,62373.0,62372.0,0.082742]
[1728060286839,0.32443851,62373.0,62372.0,0.082742]
[1728060287062,0.32443851,62373.0,62372.0,0.001642]
[1728060287303,0.50132817,62373.0,62372.0,0.001642]
[1728060287538,0.32543851,62373.0,62372.0,0.001642]
[1728060287781,0.32543851,62373.0,62372.0,0.183842]
[1728060287782,0.05711351,62373.0,62372.0,0.183842]
[1728060288020,0.05711351,62373.0,62372.0,0.34417]
[1728060288253,0.05111351,62373.0,62372.0,0.34417]
[1728060288475,0.05111351,62373.0,62372.0,0.183842]
[1728060288476,0.03097032,62373.0,62372.0,0.183842]
[1728060288693,0.19229532,62373.0,62372.0,0.183842]
[1728060288930,0.18629532,62373.0,62372.0,0.183842]
[1728060289161,0.02597032,62373.0,62372.0,0.183842]
[1728060289355,0.02597032,62373.0,62372.0,0.2503271]
[1728060289553,0.04997032,62373.0,62372.0,0.183842]
[1728060289807,0.02797032,62373.0,62372.0,0.183842]
[1728060290039,0.02797032,62373.0,62372.0,0.34417]
[1728060290264,0.02697032,62373.0,62372.0,0.183842]
[1728060290491,0.18729532,62373.0,62372.0,0.084142]
[1728060290956,0.18729532,62373.0,62354.0,0.0825]
[1728060290957,0.160372,62355.0,62354.0,0.0825]
[1728060291213,0.160372,62355.0,62352.0,0.2405041]
[1728060291214,0.160377,62353.0,62352.0,0.2405041]
[1728060291466,0.160377,62353.0,62348.0,0.0825]
[1728060291467,0.160387,62349.0,62348.0,0.0825]
[1728060291719,0.160387,62349.0,62341.0,0.1798]
[1728060291720,0.160405,62342.0,62341.0,0.1798]
[1728060291956,0.183405,62342.0,62341.0,0.1798]
[1728060292665,0.20855902,62342.0,62341.0,0.1798]
[1728060293139,0.20955902,62342.0,62341.0,0.1798]
[1728060294336,0.21055902,62342.0,62341.0,0.1798]
[1728060294595,0.21055902,62342.0,62341.0,0.0801]
[1728060294838,0.21055902,62342.0,62332.0,0.1767]
[1728060294839,0.160428,62333.0,62332.0,0.1767]
[1728060295052,0.183428,62333.0,62332.0,0.1767]
[1728060295731,0.20858425,62333.0,62332.0,0.1767]
[1728060297148,0.04815625,62333.0,62332.0,0.1767]
[1728060298080,0.04815625,62333.0,62332.0,0.337131]
[1728060298324,0.160418,62337.0,62333.0,0.160428]
[1728060298564,0.1,62343.0,62332.0,0.1767]
[1728060298801,0.160409,62341.0,62338.0,0.160415]
[1728060299048,0.160406,62342.0,62338.0,0.160414]
[1728060299294,0.160408,62341.0,62337.0,0.160417]
[1728060299525,0.1,62343.0,62339.0,0.4009151]
[1728060299526,0.260403,62343.0,62339.0,0.4009151]
[1728060299738,0.023,62343.0,62332.0,0.1767]
[1728060300014,0.320793,62346.0,62338.0,0.5613351]
[1728060300281,0.42439376,62358.0,62332.0,0.1767]
[1728060300282,0.2405041,62342.0,62332.0,0.1767]
[1728060300500,0.160401,62344.0,62338.0,0.320827]
[1728060300719,0.160399,62345.0,62341.0,0.160406]
[1728060300954,0.1,62348.0,62339.0,0.320821]
[1728060301173,0.023,62347.0,62338.0,0.002]
[1728060301417,0.023,62347.0,62339.0,0.160412]
[1728060301418,0.183402,62343.0,62339.0,0.160412]
[1728060301660,0.183402,62343.0,62338.0,0.002]
[1728060301661,0.183402,62343.0,62340.0,0.160409]
[1728060301889,0.183402,62343.0,62341.0,0.160407]
[1728060301890,0.023,62343.0,62341.0,0.160407]
[1728060302115,0.320791,62346.0,62338.0,0.003]
[1728060302116,0.160406,62342.0,62338.0,0.484241]
[1728060302333,0.320802,62344.0,62339.0,0.160411]
[1728060302573,0.023,62343.0,62340.0,0.16041]
[1728060302793,0.023,62343.0,62339.0,0.163413]
[1728060302794,0.160406,62342.0,62339.0,0.163413]
[1728060303010,0.023,62343.0,62340.0,0.160409]
[1728060303226,0.023,62343.0,62339.0,0.003]
[1728060303460,0.160401,62344.0,62341.0,0.160408]
[1728060303717,0.023,62343.0,62341.0,0.160408]
[1728060303957,0.023,62345.0,62339.0,0.320825]
[1728060304208,0.023,62343.0,62340.0,0.160408]
[1728060304451,0.001,62342.0,62339.0,0.320825]
[1728060304681,0.023,62341.0,62339.0,0.160412]
[1728060304900,0.001,62342.0,62338.0,0.002]
[1728060305124,0.023,62348.0,62341.0,0.0817]
[1728060305383,0.20855823,62342.0,62341.0,0.0817]
[1728060305860,0.20855823,62342.0,62341.0,0.0837]
[1728060306120,0.04815323,62342.0,62341.0,0.0837]
[1728060306591,0.20855823,62342.0,62341.0,0.0837]
[1728060307053,0.20855823,62342.0,62341.0,0.0817]
[1728060307278,0.20855823,62342.0,62341.0,0.244108]
[1728060307279,0.04815323,62342.0,62341.0,0.244108]
[1728060307722,0.04815323,62342.0,62341.0,0.224108]
[1728060307970,0.023,62347.0,62341.0,0.0637]
[1728060308228,0.023,62347.0,62346.0,0.160395]
[1728060309184,0.023,62349.0,62348.0,0.16039]
[1728060309410,0.320715,62361.0,62346.0,0.18388966]
[1728060309636,0.160358,62361.0,62357.0,0.160366]
[1728060309878,0.2405041,62365.0,62355.0,0.18388966]
[1728060310097,0.2405041,62365.0,62359.0,0.320719]
[1728060310575,0.160339,62368.0,62364.0,0.160347]
[1728060310791,0.320665,62371.0,62365.0,0.075]
[1728060310792,0.32067,62370.0,62365.0,0.075]
[1728060311023,0.160343,62366.0,62365.0,0.075]
[1728060311482,0.260343,62366.0,62365.0,0.075]
[1728060311935,0.283343,62366.0,62365.0,0.075]
[1728060312177,0.30848793,62366.0,62365.0,0.075]
[1728060313580,0.123,62365.0,62344.0,0.0802]
[1728060313837,0.18388966,62356.0,62352.0,0.2405041]
[1728060314058,0.160395,62346.0,62345.0,0.2405041]
[1728060314290,0.183395,62346.0,62345.0,0.2405041]
[1728060314524,0.183397,62345.0,62344.0,0.0802]
[1728060315514,0.183397,62345.0,62344.0,0.0812]
[1728060316856,0.023,62345.0,62344.0,0.2591842]
[1728060317078,0.023,62345.0,62344.0,0.2416]
[1728060317079,0.024,62345.0,62344.0,0.2416]
[1728060317297,0.024,62345.0,62344.0,0.2406]
[1728060317810,0.025,62345.0,62344.0,0.2466]
[1728060318026,0.002,62345.0,62344.0,0.2466]
[1728060320324,0.001,62345.0,62344.0,0.2406]
[1728060320548,0.320705,62363.0,62354.0,0.239374]
[1728060320549,0.2405041,62355.0,62354.0,0.239374]
[1728060320996,0.4008581,62362.0,62358.0,0.160363]
[1728060320997,0.023,62360.0,62358.0,0.160363]
[1728060321449,0.023,62361.0,62358.0,0.160361]
[1728060321666,0.420695,62365.0,62354.0,0.079]
[1728060321667,0.160369,62356.0,62354.0,0.079]
[1728060321895,0.3376422,62364.0,62354.0,0.079]
[1728060322109,0.160365,62358.0,62354.0,0.245373]
[1728060322352,0.001,62355.0,62354.0,0.245373]
[1728060323268,0.02614787,62355.0,62354.0,0.245373]
[1728060323737,0.02614787,62355.0,62354.0,0.245374]
[1728060323986,0.18551987,62355.0,62354.0,0.081]
[1728060324219,0.02514787,62355.0,62354.0,0.081]
[1728060324452,0.02614787,62355.0,62354.0,0.085]
[1728060324702,0.02714787,62355.0,62354.0,0.254374]
[1728060325179,0.02514787,62355.0,62354.0,0.239374]
[1728060325455,0.02514787,62355.0,62354.0,0.250374]
[1728060325678,0.02714787,62355.0,62354.0,0.256374]
[1728060325900,0.02714787,62355.0,62354.0,0.53266366]
[1728060326119,0.02714787,62355.0,62354.0,0.62245326]
[1728060326334,0.02714787,62355.0,62354.0,0.4385636]
[1728060326567,0.02714787,62355.0,62354.0,0.348774]
[1728060326805,0.002,62355.0,62354.0,0.342774]
[1728060327043,0.001,62355.0,62354.0,0.342774]
[1728060327268,0.002,62355.0,62354.0,0.348774]
[1728060327482,0.002,62355.0,62354.0,0.53266366]
[1728060327722,0.002,62355.0,62354.0,0.348774]
[1728060329690,0.001,62355.0,62354.0,0.337774]
[1728060329976,0.321475,62373.0,62364.0,0.160346]
[1728060330202,0.2405041,62365.0,62356.0,0.320736]
[1728060330467,0.023,62370.0,62369.0,0.160334]
[1728060331672,0.025,62370.0,62369.0,0.236934]
[1728060333250,0.028,62370.0,62369.0,0.236934]
[1728060333746,0.005,62370.0,62369.0,0.236934]
[1728060334403,0.02514627,62371.0,62369.0,0.0766]
[1728060334609,0.02514627,62371.0,62370.0,0.160333]
[1728060337275,0.02614627,62371.0,62370.0,0.171333]
[1728060338005,0.02614627,62371.0,62370.0,0.182333]
[1728060338472,0.04914627,62371.0,62370.0,0.022]
[1728060338942,0.04914627,62371.0,62370.0,0.182333]
[1728060343656,0.20947627,62371.0,62370.0,0.022]
[1728060344339,0.21029727,62371.0,62370.0,0.022]
[1728060344543,0.21029727,62371.0,62370.0,0.011]
[1728060344544,0.20929727,62371.0,62370.0,0.011]
[1728060344787,0.20929727,62371.0,62370.0,0.012]
[1728060345418,0.20929727,62371.0,62370.0,0.001]
[1728060345659,0.21029727,62371.0,62370.0,0.001]
[1728060346107,0.023,62370.0,62364.0,0.160347]
[1728060346360,0.023,62370.0,62346.0,0.105]
[1728060346361,0.023,62366.0,62354.0,0.0815]
[1728060346598,0.35599884,62370.0,62341.0,0.05399471]
[1728060346599,0.023,62358.0,62349.0,0.0787]
[1728060346858,0.18388966,62359.0,62349.0,0.0787]
[1728060346859,0.023,62356.0,62349.0,0.0787]
[1728060347073,0.320736,62357.0,62345.0,0.2405041]
[1728060347074,0.160395,62346.0,62345.0,0.2405041]
[1728060347287,0.183395,62346.0,62345.0,0.2405041]
[1728060347501,0.183395,62346.0,62341.0,0.001642]
[1728060347502,0.20688966,62346.0,62341.0,0.001642]
[1728060347765,0.36729466,62342.0,62341.0,0.001642]
[1728060348674,0.46729466,62342.0,62341.0,0.001642]
[1728060348930,0.61026353,62342.0,62341.0,0.001642]
[1728060350122,0.61326353,62342.0,62341.0,0.001642]
[1728060350810,0.62226353,62342.0,62341.0,0.002642]
[1728060351250,0.64742047,62342.0,62341.0,0.002642]
[1728060351725,0.64442047,62342.0,62341.0,0.002642]
[1728060351932,0.65142047,62342.0,62341.0,0.003642]
[1728060352385,0.32456194,62342.0,62341.0,0.003642]
[1728060353747,0.5084516,62342.0,62341.0,0.003642]
[1728060355083,0.32456194,62342.0,62341.0,0.003642]
[1728060355743,0.32456194,62342.0,62341.0,0.002642]
[1728060355744,0.31756194,62342.0,62341.0,0.002642]
[1728060355965,0.31556194,62342.0,62341.0,0.002642]
[1728060356440,0.31356194,62342.0,62341.0,0.001642]
[1728060356672,0.28556194,62342.0,62341.0,0.001642]
[1728060357147,0.28656194,62342.0,62341.0,0.001642]
[1728060358358,0.261405,62342.0,62341.0,0.001642]
[1728060359023,0.260405,62342.0,62341.0,0.001642]
[1728060359455,0.261405,62342.0,62341.0,0.001642]
[1728060359683,0.260405,62342.0,62341.0,0.001642]
[1728060359890,0.261405,62342.0,62341.0,0.001642]
[1728060360100,0.260405,62342.0,62341.0,0.001642]
[1728060360526,0.261405,62342.0,62341.0,0.001642]
[1728060360753,0.260405,62342.0,62341.0,0.001642]
[1728060361886,0.160405,62342.0,62341.0,0.001642]
[1728060362096,0.001,62342.0,62341.0,0.001642]
[1728060362309,0.001,62342.0,62341.0,0.16205]
[1728060362514,0.1,62345.0,62343.0,0.160401]
[1728060362737,0.02815281,62342.0,62341.0,0.001642]
[1728060362951,0.02615281,62342.0,62341.0,0.001642]
[1728060363155,0.02515281,62342.0,62341.0,0.16205]
[1728060363368,0.02515281,62342.0,62341.0,0.011642]
[1728060363369,0.18555781,62342.0,62341.0,0.011642]
[1728060363879,0.44371127,62342.0,62341.0,0.011642]
[1728060364093,0.30855781,62342.0,62341.0,0.011642]
[1728060364752,0.30855781,62342.0,62341.0,0.006642]
[1728060364965,0.30955781,62342.0,62341.0,0.006642]
[1728060365171,0.30955781,62342.0,62341.0,0.001642]
[1728060365391,0.46234096,62342.0,62341.0,0.002642]
[1728060365592,0.46234096,62342.0,62341.0,0.001642]
[1728060365593,0.45634096,62342.0,62341.0,0.001642]
[1728060365848,0.46234096,62342.0,62341.0,0.002642]
[1728060366096,0.46234096,62342.0,62341.0,0.003642]
[1728060366097,0.47334096,62342.0,62341.0,0.003642]
[1728060366324,0.46734096,62342.0,62341.0,0.002642]
[1728060366557,0.47334096,62342.0,62341.0,0.003642]
[1728060367249,0.47416196,62342.0,62341.0,0.003642]
[1728060367952,0.56726196,62342.0,62341.0,0.003642]
[1728060368210,0.56726196,62342.0,62325.0,0.001642]
[1728060368211,0.44632066,62332.0,62325.0,0.001642]
[1728060368475,0.46932066,62332.0,62325.0,0.001642]
[1728060368709,0.160441,62328.0,62325.0,0.001642]
[1728060368931,0.53313066,62328.0,62325.0,0.2421461]
[1728060369144,0.53313066,62328.0,62325.0,0.001642]
[1728060369599,0.53513066,62328.0,62325.0,0.001642]
[1728060369815,0.83005049,62328.0,62325.0,0.001642]
[1728060370031,0.78028207,62328.0,62325.0,0.001642]
[1728060370247,0.83005049,62328.0,62325.0,0.001642]
[1728060371156,5.14205049,62328.0,62325.0,0.001642]
[1728060371388,4.00305049,62328.0,62325.0,0.001642]
[1728060371636,4.00305049,62328.0,62317.0,0.2405041]
[1728060371637,0.002,62322.0,62317.0,0.2405041]
[1728060371848,0.002,62322.0,62318.0,0.2405041]
[1728060371849,0.46934566,62322.0,62318.0,0.2405041]
[1728060372064,0.46934566,62322.0,62312.0,0.001642]
[1728060372278,0.44436966,62313.0,62312.0,0.001642]
[1728060372491,0.46736966,62313.0,62312.0,0.001642]
[1728060373792,0.49253972,62313.0,62312.0,0.001642]
[1728060374008,0.54230814,62313.0,62312.0,0.001642]
[1728060374251,0.70602365,62313.0,62312.0,0.001642]
[1728060374677,0.55530814,62313.0,62312.0,0.001642]
[1728060374895,0.51953972,62313.0,62312.0,0.001642]
[1728060376289,0.31265006,62313.0,62312.0,0.001642]
[1728060376945,0.29965006,62313.0,62312.0,0.001642]
[1728060377382,0.33565006,62313.0,62312.0,0.001642]
[1728060377596,0.46988873,62313.0,62312.0,0.001642]
[1728060377831,0.47088873,62313.0,62312.0,0.001642]
[1728060378048,0.47588873,62313.0,62312.0,0.001642]
[1728060378242,0.43671867,62313.0,62312.0,0.001642]
[1728060378518,0.44471867,62313.0,62312.0,0.001642]
[1728060378799,0.46988725,62313.0,62312.0,0.001642]
[1728060379250,0.32164858,62313.0,62312.0,0.001642]
[1728060379475,0.34164858,62313.0,62312.0,0.001642]
[1728060381802,0.34364858,62313.0,62312.0,0.001642]
[1728060382035,0.34164858,62313.0,62312.0,0.001642]
[1728060382267,0.33364858,62313.0,62312.0,0.001642]
[1728060382498,0.4818871,62313.0,62312.0,0.001642]
[1728060382740,0.4928871,62313.0,62312.0,0.001642]
[1728060383685,0.4878871,62313.0,62312.0,0.001642]
[1728060383972,0.4968871,62313.0,62312.0,0.001642]
[1728060384204,0.47171852,62313.0,62312.0,0.001642]
[1728060384434,0.45171852,62313.0,62312.0,0.001642]
[1728060384658,0.47371852,62313.0,62312.0,0.001642]
[1728060384877,0.46171852,62313.0,62312.0,0.001642]
[1728060385102,0.69222262,62313.0,62312.0,0.001642]
[1728060385338,0.46571852,62313.0,62312.0,0.001642]
[1728060385592,0.46571852,62313.0,62292.0,0.001642]
[1728060385593,0.160511,62301.0,62300.0,0.02113636]
[1728060385825,0.46740066,62301.0,62300.0,0.02113636]
[1728060387228,0.49257345,62301.0,62300.0,0.02113636]
[1728060387470,0.51774881,62301.0,62300.0,0.02113636]
[1728060387709,0.52874881,62301.0,62300.0,0.02113636]
[1728060387938,0.51774881,62301.0,62300.0,0.02113636]
[1728060388402,0.54474881,62301.0,62300.0,0.02113636]
[1728060388610,0.68272629,62301.0,62300.0,0.02113636]
[1728060388885,0.69872629,62301.0,62300.0,0.02113636]
[1728060389781,0.68472629,62301.0,62300.0,0.02113636]